[Event "Titled Tuesday Blitz August 3 2021"]
[White "Madaminov, Mukhiddin"]
[Black "Ouellet, Maili-Jade"]
[WhiteFideId "14210703"]
[BlackFideId "2620472"]
[WhiteElo "1747"]
[BlackElo "1886"]
[Result "1/2-1/2"]
[Round "01"]
[TimeControl "180+1"]
[Date "2021.08.03"]
[WhiteClock "0:00:09"]
[BlackClock "0:00:06"]

1. e4 {[%clk 0:03:00]}  c5 {[%clk 0:02:59]} 2. Nf3 {[%clk 0:02:35]}  d6 {[%clk 0:02:59]} 3. Bb5+ {[%clk 0:02:34]}  Nd7 {[%clk 0:02:59]} 4. O-O {[%clk 0:02:33]}  Nf6 {[%clk 0:02:59]} 5. Re1 {[%clk 0:02:32]}  g6 {[%clk 0:02:59]} 6. c3 {[%clk 0:02:31]}  Bg7 {[%clk 0:02:57]} 7. d4 {[%clk 0:02:31]}  a6 {[%clk 0:02:56]} 8. Bd3 {[%clk 0:02:28]}  e5 {[%clk 0:02:54]} 9. Nbd2 {[%clk 0:02:28]}  O-O {[%clk 0:02:54]} 10. d5 {[%clk 0:02:20]}  b5 {[%clk 0:02:53]} 11. a4 {[%clk 0:02:20]}  Rb8 {[%clk 0:02:53]} 12. b3 {[%clk 0:02:15]}  Ne8 {[%clk 0:02:49]} 13. h3 {[%clk 0:02:12]}  h6 {[%clk 0:02:47]} 14. Nf1 {[%clk 0:02:03]}  f5 {[%clk 0:02:46]} 15. Ng3 {[%clk 0:02:00]}  f4 {[%clk 0:02:45]} 16. Nf1 {[%clk 0:01:59]}  g5 {[%clk 0:02:42]} 17. axb5 {[%clk 0:01:52]}  axb5 {[%clk 0:02:41]} 18. Ra7 {[%clk 0:01:47]}  Qb6 {[%clk 0:02:37]} 19. Ra2 {[%clk 0:01:45]}  Ndf6 {[%clk 0:02:34]} 20. N1h2 {[%clk 0:01:36]}  Bd7 {[%clk 0:02:30]} 21. Ree2 {[%clk 0:01:29]}  Nh7 {[%clk 0:02:29]} 22. Reb2 {[%clk 0:01:24]}  Nef6 {[%clk 0:02:28]} 23. c4 {[%clk 0:01:20]}  h5 {[%clk 0:02:25]} 24. Kh1 {[%clk 0:01:09]}  g4 {[%clk 0:02:25]} 25. Ng1 {[%clk 0:01:10]}  Ng5 {[%clk 0:02:16]} 26. h4 {[%clk 0:01:05]}  Nf7 {[%clk 0:02:14]} 27. Nf1 {[%clk 0:01:01]}  Nh8 {[%clk 0:02:12]} 28. Ne2 {[%clk 0:01:01]}  Ng6 {[%clk 0:02:12]} 29. g3 {[%clk 0:01:01]}  Ne8 {[%clk 0:02:04]} 30. Kg1 {[%clk 0:00:58]}  Nc7 {[%clk 0:02:03]} 31. Nc3 {[%clk 0:00:56]}  Rf7 {[%clk 0:02:02]} 32. Rb1 {[%clk 0:00:46]}  Rbf8 {[%clk 0:01:59]} 33. Rba1 {[%clk 0:00:44]}  fxg3 {[%clk 0:01:51]} 34. fxg3 {[%clk 0:00:44]}  Rf3 {[%clk 0:01:51]} 35. Rg2 {[%clk 0:00:31]}  bxc4 {[%clk 0:01:45]} 36. bxc4 {[%clk 0:00:32]}  Qb4 {[%clk 0:01:44]} 37. Na2 {[%clk 0:00:19]}  Qa5 {[%clk 0:01:39]} 38. Nh2 {[%clk 0:00:18]}  R3f7 {[%clk 0:01:37]} 39. Be3 {[%clk 0:00:17]}  Qa3 {[%clk 0:01:29]} 40. Qd2 {[%clk 0:00:14]}  Ba4 {[%clk 0:01:20]} 41. Qc3 {[%clk 0:00:14]}  Qxc3 {[%clk 0:01:16]} 42. Nxc3 {[%clk 0:00:15]}  Bd7 {[%clk 0:01:12]} 43. Rf2 {[%clk 0:00:14]}  Rxf2 {[%clk 0:01:03]} 44. Bxf2 {[%clk 0:00:15]}  Bh6 {[%clk 0:01:03]} 45. Nf1 {[%clk 0:00:15]}  Rf3 {[%clk 0:01:01]} 46. Rd1 {[%clk 0:00:15]}  Na6 {[%clk 0:01:00]} 47. Nh2 {[%clk 0:00:15]}  Rf7 {[%clk 0:00:57]} 48. Re1 {[%clk 0:00:13]}  Nb4 {[%clk 0:00:57]} 49. Bb1 {[%clk 0:00:13]}  Bd2 {[%clk 0:00:57]} 50. Nd1 {[%clk 0:00:09]}  Bxe1 {[%clk 0:00:55]} 51. Bxe1 {[%clk 0:00:10]}  Ba4 {[%clk 0:00:53]} 52. Ne3 {[%clk 0:00:11]}  Ne7 {[%clk 0:00:49]} 53. Nhf1 {[%clk 0:00:11]}  Bb3 {[%clk 0:00:46]} 54. Nd2 {[%clk 0:00:11]}  Ba4 {[%clk 0:00:45]} 55. Nf5 {[%clk 0:00:11]}  Nxf5 {[%clk 0:00:43]} 56. exf5 {[%clk 0:00:12]}  Nc2 {[%clk 0:00:44]} 57. Bf2 {[%clk 0:00:10]}  Rxf5 {[%clk 0:00:42]} 58. Ne4 {[%clk 0:00:11]}  Na3 {[%clk 0:00:36]} 59. Nxd6 {[%clk 0:00:11]}  Rxf2 {[%clk 0:00:35]} 60. Kxf2 {[%clk 0:00:06]}  Nxb1 {[%clk 0:00:36]} 61. Ne4 {[%clk 0:00:06]}  Na3 {[%clk 0:00:34]} 62. Nxc5 {[%clk 0:00:06]}  Be8 {[%clk 0:00:28]} 63. d6 {[%clk 0:00:07]}  Nxc4 {[%clk 0:00:22]} 64. d7 {[%clk 0:00:08]}  Bxd7 {[%clk 0:00:22]} 65. Nxd7 {[%clk 0:00:09]}  Kf7 {[%clk 0:00:21]} 66. Ke2 {[%clk 0:00:10]}  Ke6 {[%clk 0:00:20]} 67. Nf8+ {[%clk 0:00:10]}  Kf6 {[%clk 0:00:15]} 68. Nd7+ {[%clk 0:00:10]}  Kf5 {[%clk 0:00:13]} 69. Kd3 {[%clk 0:00:06]}  Nd6 {[%clk 0:00:13]} 70. Nc5 {[%clk 0:00:06]}  Kf6 {[%clk 0:00:09]} 71. Ke3 {[%clk 0:00:06]}  Nf5+ {[%clk 0:00:07]} 72. Kd3 {[%clk 0:00:06]}  Nxg3 {[%clk 0:00:07]} 73. Nd7+ {[%clk 0:00:04]}  Ke6 {[%clk 0:00:07]} 74. Nc5+ {[%clk 0:00:04]}  Kd5 {[%clk 0:00:07]} 75. Nd7 {[%clk 0:00:05]}  Nf5 {[%clk 0:00:07]} 76. Nf6+ {[%clk 0:00:05]}  Ke6 {[%clk 0:00:07]} 77. Nxh5 {[%clk 0:00:06]}  Nxh4 {[%clk 0:00:08]} 78. Ke4 {[%clk 0:00:07]}  Ng6 {[%clk 0:00:07]} 79. Ng7+ {[%clk 0:00:07]}  Kf6 {[%clk 0:00:07]} 80. Nf5 {[%clk 0:00:08]}  Kg5 {[%clk 0:00:07]} 81. Ne3 {[%clk 0:00:08]}  Nf4 {[%clk 0:00:07]} 82. Nxg4 {[%clk 0:00:08]}  Kxg4 {[%clk 0:00:06]} 83. Kxe5 {[%clk 0:00:09]} 1/2-1/2


[Site "https://www.chess.com"]

[Event "Titled Tuesday Blitz August 3 2021"]
[White "Martin Duque, Jesus"]
[Black "Molina, Roberto Junio Brito"]
[WhiteFideId "2208954"]
[BlackFideId "2109450"]
[WhiteElo "2224"]
[BlackElo "2402"]
[Result "0-1"]
[Round "01"]
[TimeControl "180+1"]
[Date "2021.08.03"]
[WhiteClock "0:00:28"]
[BlackClock "0:00:27"]

1. Nf3 {[%clk 0:02:59]}  d5 {[%clk 0:02:59]} 2. b3 {[%clk 0:02:54]}  Bg4 {[%clk 0:02:58]} 3. e3 {[%clk 0:02:54]}  Nd7 {[%clk 0:02:57]} 4. Bb2 {[%clk 0:02:53]}  e6 {[%clk 0:02:55]} 5. h3 {[%clk 0:02:52]}  Bh5 {[%clk 0:02:55]} 6. d3 {[%clk 0:02:49]}  Ngf6 {[%clk 0:02:53]} 7. g4 {[%clk 0:02:49]}  Bg6 {[%clk 0:02:53]} 8. Nh4 {[%clk 0:02:50]}  Bd6 {[%clk 0:02:49]} 9. Bg2 {[%clk 0:02:49]}  O-O {[%clk 0:02:48]} 10. Nd2 {[%clk 0:02:47]}  Qe7 {[%clk 0:02:47]} 11. Nxg6 {[%clk 0:02:45]}  hxg6 {[%clk 0:02:47]} 12. a4 {[%clk 0:02:42]}  c6 {[%clk 0:02:44]} 13. h4 {[%clk 0:02:42]}  e5 {[%clk 0:02:34]} 14. g5 {[%clk 0:02:38]}  Nh7 {[%clk 0:02:22]} 15. Qg4 {[%clk 0:02:35]}  f5 {[%clk 0:02:17]} 16. gxf6 {[%clk 0:02:34]}  Rxf6 {[%clk 0:02:13]} 17. h5 {[%clk 0:02:24]}  Ndf8 {[%clk 0:02:05]} 18. h6 {[%clk 0:02:11]}  Qe6 {[%clk 0:01:52]} 19. Qxe6+ {[%clk 0:02:06]}  Rxe6 {[%clk 0:01:42]} 20. hxg7 {[%clk 0:02:04]}  Kxg7 {[%clk 0:01:43]} 21. c4 {[%clk 0:02:03]}  Nf6 {[%clk 0:01:37]} 22. Ke2 {[%clk 0:02:00]}  d4 {[%clk 0:01:33]} 23. Rag1 {[%clk 0:01:57]}  c5 {[%clk 0:01:30]} 24. Bxb7 {[%clk 0:01:53]}  Rb8 {[%clk 0:01:22]} 25. Bf3 {[%clk 0:01:41]}  N8d7 {[%clk 0:01:20]} 26. Bg4 {[%clk 0:01:37]}  Nxg4 {[%clk 0:01:20]} 27. Rxg4 {[%clk 0:01:38]}  Nb6 {[%clk 0:01:20]} 28. Ba3 {[%clk 0:01:35]}  Rh8 {[%clk 0:01:02]} 29. Rhg1 {[%clk 0:01:34]}  Nd7 {[%clk 0:00:53]} 30. Ne4 {[%clk 0:01:28]}  Be7 {[%clk 0:00:53]} 31. exd4 {[%clk 0:01:14]}  exd4 {[%clk 0:00:51]} 32. f4 {[%clk 0:01:13]}  Kf7 {[%clk 0:00:45]} 33. Kf3 {[%clk 0:00:58]}  Rh3+ {[%clk 0:00:41]} 34. R4g3 {[%clk 0:00:57]}  Rh2 {[%clk 0:00:41]} 35. R1g2 {[%clk 0:00:54]}  Rh1 {[%clk 0:00:41]} 36. Rg1 {[%clk 0:00:42]}  Rh2 {[%clk 0:00:41]} 37. R3g2 {[%clk 0:00:42]}  Rh3+ {[%clk 0:00:41]} 38. Ke2 {[%clk 0:00:41]}  Nf6 {[%clk 0:00:32]} 39. Rxg6 {[%clk 0:00:40]}  Nxe4 {[%clk 0:00:32]} 40. Rxe6 {[%clk 0:00:40]}  Nc3+ {[%clk 0:00:31]} 41. Kd2 {[%clk 0:00:40]}  Kxe6 {[%clk 0:00:30]} 42. Rg2 {[%clk 0:00:28]}  Nb1+ {[%clk 0:00:30]} 43. Kc2 {[%clk 0:00:27]}  Nxa3+ {[%clk 0:00:31]} 44. Kb2 {[%clk 0:00:28]}  Rxd3 {[%clk 0:00:27]} 45. Ka2 {[%clk 0:00:28]} 0-1


[Site "https://www.chess.com"]

[Event "Titled Tuesday Blitz August 3 2021"]
[White "Moon_stone123"]
[Black "Vasquez Schroeder, Rodrigo"]
[BlackFideId "3400042"]
[WhiteElo "2413"]
[BlackElo "2572"]
[Result "0-1"]
[Round "01"]
[TimeControl "180+1"]
[Date "2021.08.03"]
[WhiteClock "0:00:08"]
[BlackClock "0:00:43"]

1. Nf3 {[%clk 0:02:54]}  Nf6 {[%clk 0:02:58]} 2. g3 {[%clk 0:02:54]}  b6 {[%clk 0:02:58]} 3. Bg2 {[%clk 0:02:54]}  Bb7 {[%clk 0:02:58]} 4. O-O {[%clk 0:02:54]}  c5 {[%clk 0:02:58]} 5. d3 {[%clk 0:02:53]}  g6 {[%clk 0:02:57]} 6. e4 {[%clk 0:02:52]}  Bg7 {[%clk 0:02:58]} 7. Nc3 {[%clk 0:02:51]}  d6 {[%clk 0:02:55]} 8. Re1 {[%clk 0:02:49]}  O-O {[%clk 0:02:51]} 9. e5 {[%clk 0:02:49]}  dxe5 {[%clk 0:02:50]} 10. Nxe5 {[%clk 0:02:50]}  Qc8 {[%clk 0:02:48]} 11. a4 {[%clk 0:02:47]}  Nc6 {[%clk 0:02:46]} 12. Nxc6 {[%clk 0:02:38]}  Bxc6 {[%clk 0:02:46]} 13. Bxc6 {[%clk 0:02:38]}  Qxc6 {[%clk 0:02:45]} 14. Rxe7 {[%clk 0:02:39]}  Rfe8 {[%clk 0:02:46]} 15. Rxe8+ {[%clk 0:02:39]}  Rxe8 {[%clk 0:02:45]} 16. Bd2 {[%clk 0:02:28]}  h5 {[%clk 0:02:44]} 17. Qf1 {[%clk 0:02:24]}  Ng4 {[%clk 0:02:43]} 18. Qg2 {[%clk 0:02:17]}  Qxg2+ {[%clk 0:02:38]} 19. Kxg2 {[%clk 0:02:17]}  Bxc3 {[%clk 0:02:38]} 20. Bxc3 {[%clk 0:02:15]}  Re2 {[%clk 0:02:39]} 21. Re1 {[%clk 0:02:14]}  Ne3+ {[%clk 0:02:24]} 22. Kf3 {[%clk 0:02:02]}  Rxe1 {[%clk 0:02:23]} 23. Bxe1 {[%clk 0:02:02]}  Nxc2 {[%clk 0:02:23]} 24. Bc3 {[%clk 0:02:00]}  f5 {[%clk 0:02:17]} 25. Kf4 {[%clk 0:01:55]}  Kf7 {[%clk 0:02:16]} 26. Ke5 {[%clk 0:01:49]}  Ke7 {[%clk 0:02:15]} 27. h4 {[%clk 0:01:44]}  a5 {[%clk 0:02:06]} 28. f3 {[%clk 0:01:37]}  Ne3 {[%clk 0:01:54]} 29. d4 {[%clk 0:01:00]}  f4 {[%clk 0:00:58]} 30. Kxf4 {[%clk 0:00:48]}  Nd5+ {[%clk 0:00:56]} 31. Ke5 {[%clk 0:00:46]}  Nxc3 {[%clk 0:00:54]} 32. bxc3 {[%clk 0:00:46]}  b5 {[%clk 0:00:55]} 33. Kd5 {[%clk 0:00:20]}  bxa4 {[%clk 0:00:53]} 34. Kc4 {[%clk 0:00:18]}  cxd4 {[%clk 0:00:40]} 35. cxd4 {[%clk 0:00:18]}  Kd6 {[%clk 0:00:40]} 36. g4 {[%clk 0:00:18]}  a3 {[%clk 0:00:39]} 37. Kb3 {[%clk 0:00:14]}  Kd5 {[%clk 0:00:39]} 38. gxh5 {[%clk 0:00:07]}  gxh5 {[%clk 0:00:39]} 39. Kxa3 {[%clk 0:00:04]}  Kxd4 {[%clk 0:00:39]} 40. Ka4 {[%clk 0:00:05]}  Ke3 {[%clk 0:00:40]} 41. Kxa5 {[%clk 0:00:05]}  Kxf3 {[%clk 0:00:40]} 42. Kb4 {[%clk 0:00:06]}  Kg3 {[%clk 0:00:41]} 43. Kc3 {[%clk 0:00:07]}  Kxh4 {[%clk 0:00:42]} 44. Kd2 {[%clk 0:00:07]}  Kg3 {[%clk 0:00:43]} 45. Ke1 {[%clk 0:00:08]}  Kg2 {[%clk 0:00:43]} 0-1


[Site "https://www.chess.com"]

[Event "Titled Tuesday Blitz August 3 2021"]
[White "Murzin, Volodar"]
[Black "Baches Garcia, Guillermo"]
[WhiteFideId "44155573"]
[BlackFideId "2209764"]
[WhiteElo "2541"]
[BlackElo "2407"]
[Result "1-0"]
[Round "01"]
[TimeControl "180+1"]
[Date "2021.08.03"]
[WhiteClock "0:00:09"]
[BlackClock "0:00:22"]

1. e4 {[%clk 0:03:00]}  c5 {[%clk 0:03:00]} 2. Nf3 {[%clk 0:03:00]}  d6 {[%clk 0:03:00]} 3. d4 {[%clk 0:02:58]}  cxd4 {[%clk 0:03:00]} 4. Qxd4 {[%clk 0:02:59]}  Nf6 {[%clk 0:02:58]} 5. Be2 {[%clk 0:02:58]}  g6 {[%clk 0:02:55]} 6. O-O {[%clk 0:02:57]}  Bg7 {[%clk 0:02:53]} 7. Rd1 {[%clk 0:02:54]}  O-O {[%clk 0:02:48]} 8. Nc3 {[%clk 0:02:41]}  Nc6 {[%clk 0:02:34]} 9. Qe3 {[%clk 0:02:40]}  Bg4 {[%clk 0:02:34]} 10. e5 {[%clk 0:02:31]}  Ne8 {[%clk 0:02:11]} 11. exd6 {[%clk 0:02:28]}  Nxd6 {[%clk 0:02:07]} 12. Ne4 {[%clk 0:02:13]}  Qa5 {[%clk 0:01:48]} 13. Nxd6 {[%clk 0:01:56]}  exd6 {[%clk 0:01:47]} 14. Qf4 {[%clk 0:01:54]}  Bf5 {[%clk 0:01:16]} 15. c3 {[%clk 0:01:48]}  Rfe8 {[%clk 0:01:10]} 16. Be3 {[%clk 0:01:40]}  Ne5 {[%clk 0:01:01]} 17. Nd4 {[%clk 0:01:33]}  Bd7 {[%clk 0:00:48]} 18. Qh4 {[%clk 0:01:27]}  Rac8 {[%clk 0:00:43]} 19. Bh6 {[%clk 0:01:20]}  Bh8 {[%clk 0:00:42]} 20. Bg5 {[%clk 0:00:54]}  Qb6 {[%clk 0:00:41]} 21. Rd2 {[%clk 0:00:50]}  Nc4 {[%clk 0:00:37]} 22. Bxc4 {[%clk 0:00:46]}  Rxc4 {[%clk 0:00:38]} 23. Bf6 {[%clk 0:00:45]}  Bxf6 {[%clk 0:00:33]} 24. Qxf6 {[%clk 0:00:43]}  Rc5 {[%clk 0:00:32]} 25. h3 {[%clk 0:00:32]}  Rce5 {[%clk 0:00:30]} 26. Qf4 {[%clk 0:00:23]}  Bc6 {[%clk 0:00:26]} 27. Kh2 {[%clk 0:00:20]}  Be4 {[%clk 0:00:25]} 28. Re1 {[%clk 0:00:16]}  Bc6 {[%clk 0:00:22]} 29. Red1 {[%clk 0:00:12]}  Qc7 {[%clk 0:00:22]} 30. Qg3 {[%clk 0:00:12]}  Qe7 {[%clk 0:00:21]} 31. Rd3 {[%clk 0:00:10]}  Bd7 {[%clk 0:00:20]} 32. a3 {[%clk 0:00:07]}  a6 {[%clk 0:00:20]} 33. Qf4 {[%clk 0:00:07]}  b5 {[%clk 0:00:19]} 34. Rg3 {[%clk 0:00:06]}  Re4 {[%clk 0:00:20]} 35. Qd2 {[%clk 0:00:06]}  Re5 {[%clk 0:00:20]} 36. f4 {[%clk 0:00:05]}  Re4 {[%clk 0:00:20]} 37. f5 {[%clk 0:00:05]}  Qe5 {[%clk 0:00:20]} 38. fxg6 {[%clk 0:00:05]}  hxg6 {[%clk 0:00:20]} 39. Qg5 {[%clk 0:00:05]}  Re3 {[%clk 0:00:20]} 40. Qxe5 {[%clk 0:00:04]}  R8xe5 {[%clk 0:00:20]} 41. Rxe3 {[%clk 0:00:04]}  Rxe3 {[%clk 0:00:21]} 42. Kg1 {[%clk 0:00:05]}  a5 {[%clk 0:00:20]} 43. Kf2 {[%clk 0:00:05]}  Re8 {[%clk 0:00:20]} 44. Nf3 {[%clk 0:00:05]}  b4 {[%clk 0:00:21]} 45. axb4 {[%clk 0:00:05]}  axb4 {[%clk 0:00:20]} 46. cxb4 {[%clk 0:00:05]}  Rb8 {[%clk 0:00:20]} 47. Rxd6 {[%clk 0:00:06]}  Be6 {[%clk 0:00:21]} 48. Rd4 {[%clk 0:00:06]}  Kg7 {[%clk 0:00:21]} 49. Ng5 {[%clk 0:00:06]}  Kf6 {[%clk 0:00:22]} 50. Nxe6 {[%clk 0:00:06]}  Kxe6 {[%clk 0:00:22]} 51. Ke3 {[%clk 0:00:07]}  Ke5 {[%clk 0:00:23]} 52. Kd3 {[%clk 0:00:07]}  f5 {[%clk 0:00:21]} 53. Kc3 {[%clk 0:00:06]}  g5 {[%clk 0:00:20]} 54. Rc4 {[%clk 0:00:05]}  f4 {[%clk 0:00:20]} 55. Rc5+ {[%clk 0:00:05]}  Kf6 {[%clk 0:00:21]} 56. b5 {[%clk 0:00:05]}  Re8 {[%clk 0:00:21]} 57. Rc6+ {[%clk 0:00:06]}  Kf5 {[%clk 0:00:21]} 58. Rc5+ {[%clk 0:00:06]}  Ke4 {[%clk 0:00:20]} 59. b6 {[%clk 0:00:07]}  f3 {[%clk 0:00:20]} 60. gxf3+ {[%clk 0:00:07]}  Kxf3 {[%clk 0:00:20]} 61. Rxg5 {[%clk 0:00:06]}  Rb8 {[%clk 0:00:21]} 62. Rb5 {[%clk 0:00:07]}  Ke3 {[%clk 0:00:21]} 63. Kb4 {[%clk 0:00:07]}  Ke4 {[%clk 0:00:22]} 64. b7 {[%clk 0:00:08]}  Kd4 {[%clk 0:00:21]} 65. Ka5 {[%clk 0:00:08]}  Kc4 {[%clk 0:00:22]} 66. b3+ {[%clk 0:00:09]} 1-0


[Site "https://www.chess.com"]

[Event "Titled Tuesday Blitz August 3 2021"]
[White "Novikov, Evgenij"]
[Black "Onyshchuk, Volodymyr"]
[WhiteFideId "4125380"]
[BlackFideId "14114038"]
[WhiteElo "2242"]
[BlackElo "2603"]
[Result "0-1"]
[Round "01"]
[TimeControl "180+1"]
[Date "2021.08.03"]
[WhiteClock "0:00:01"]
[BlackClock "0:00:35"]

1. Nf3 {[%clk 0:02:57]}  g6 {[%clk 0:02:59]} 2. e4 {[%clk 0:02:56]}  Bg7 {[%clk 0:02:59]} 3. d4 {[%clk 0:02:57]}  d6 {[%clk 0:03:00]} 4. c4 {[%clk 0:02:57]}  Bg4 {[%clk 0:02:58]} 5. Be2 {[%clk 0:02:52]}  Nc6 {[%clk 0:02:52]} 6. Be3 {[%clk 0:02:45]}  e5 {[%clk 0:02:50]} 7. d5 {[%clk 0:02:43]}  Bxf3 {[%clk 0:02:50]} 8. Bxf3 {[%clk 0:02:44]}  Nd4 {[%clk 0:02:50]} 9. Nd2 {[%clk 0:02:29]}  Ne7 {[%clk 0:02:46]} 10. Nb3 {[%clk 0:02:22]}  c5 {[%clk 0:02:37]} 11. dxc6 {[%clk 0:02:20]}  Nexc6 {[%clk 0:02:37]} 12. O-O {[%clk 0:02:17]}  O-O {[%clk 0:02:36]} 13. Be2 {[%clk 0:02:11]}  a5 {[%clk 0:02:35]} 14. Bd3 {[%clk 0:02:07]}  Qb6 {[%clk 0:02:31]} 15. Rb1 {[%clk 0:01:56]}  a4 {[%clk 0:02:28]} 16. Nxd4 {[%clk 0:01:49]}  exd4 {[%clk 0:02:28]} 17. Bf4 {[%clk 0:01:42]}  Ne5 {[%clk 0:02:24]} 18. Bxe5 {[%clk 0:01:35]}  dxe5 {[%clk 0:02:23]} 19. b4 {[%clk 0:01:32]}  axb3 {[%clk 0:02:22]} 20. Rxb3 {[%clk 0:01:18]}  Qc7 {[%clk 0:02:19]} 21. c5 {[%clk 0:01:09]}  Qxc5 {[%clk 0:02:10]} 22. Rxb7 {[%clk 0:01:04]}  Rxa2 {[%clk 0:02:10]} 23. Qb1 {[%clk 0:00:53]}  Ra7 {[%clk 0:02:07]} 24. Rxa7 {[%clk 0:00:47]}  Qxa7 {[%clk 0:02:06]} 25. Bc4 {[%clk 0:00:47]}  Rc8 {[%clk 0:02:02]} 26. Qb3 {[%clk 0:00:43]}  Bh6 {[%clk 0:01:59]} 27. h4 {[%clk 0:00:40]}  Kg7 {[%clk 0:01:57]} 28. Bd5 {[%clk 0:00:38]}  Rc7 {[%clk 0:01:57]} 29. Qb5 {[%clk 0:00:37]}  Qc5 {[%clk 0:01:55]} 30. Qe8 {[%clk 0:00:37]}  d3 {[%clk 0:01:52]} 31. Qxe5+ {[%clk 0:00:37]}  Kg8 {[%clk 0:01:43]} 32. h5 {[%clk 0:00:35]}  Bg7 {[%clk 0:01:28]} 33. Qe8+ {[%clk 0:00:29]}  Bf8 {[%clk 0:01:28]} 34. hxg6 {[%clk 0:00:23]}  hxg6 {[%clk 0:01:27]} 35. Qe5 {[%clk 0:00:15]}  d2 {[%clk 0:01:19]} 36. Qf6 {[%clk 0:00:07]}  Qd6 {[%clk 0:01:14]} 37. Qg5 {[%clk 0:00:05]}  Rc2 {[%clk 0:01:03]} 38. Rd1 {[%clk 0:00:05]}  Be7 {[%clk 0:00:57]} 39. Qe3 {[%clk 0:00:04]}  Qc5 {[%clk 0:00:45]} 40. Qxc5 {[%clk 0:00:03]}  Bxc5 {[%clk 0:00:44]} 41. Kf1 {[%clk 0:00:04]}  Bb4 {[%clk 0:00:41]} 42. Ke2 {[%clk 0:00:03]}  Kf8 {[%clk 0:00:40]} 43. e5 {[%clk 0:00:03]}  Rc5 {[%clk 0:00:39]} 44. Bf3 {[%clk 0:00:01]}  Rxe5+ {[%clk 0:00:39]} 45. Kd3 {[%clk 0:00:02]}  Ke7 {[%clk 0:00:37]} 46. Kc2 {[%clk 0:00:01]}  Re1 {[%clk 0:00:35]} 0-1


[Site "https://www.chess.com"]

[Event "Titled Tuesday Blitz August 3 2021"]
[White "Politov, Pavel Y."]
[Black "Firat, Burak"]
[WhiteFideId "24110515"]
[BlackFideId "6305881"]
[WhiteElo "2090"]
[BlackElo "2531"]
[Result "0-1"]
[Round "01"]
[TimeControl "180+1"]
[Date "2021.08.03"]
[WhiteClock "0:00:04"]
[BlackClock "0:00:14"]

1. d4 {[%clk 0:02:58]}  d5 {[%clk 0:02:59]} 2. Nc3 {[%clk 0:02:58]}  Nf6 {[%clk 0:02:58]} 3. Bg5 {[%clk 0:02:59]}  e6 {[%clk 0:02:58]} 4. e4 {[%clk 0:02:59]}  dxe4 {[%clk 0:02:57]} 5. Nxe4 {[%clk 0:02:59]}  Nbd7 {[%clk 0:02:58]} 6. Nxf6+ {[%clk 0:02:58]}  Nxf6 {[%clk 0:02:58]} 7. Nf3 {[%clk 0:02:59]}  c5 {[%clk 0:02:57]} 8. c3 {[%clk 0:02:52]}  cxd4 {[%clk 0:02:53]} 9. Nxd4 {[%clk 0:02:48]}  Bc5 {[%clk 0:02:53]} 10. Bb5+ {[%clk 0:02:36]}  Bd7 {[%clk 0:02:44]} 11. Bxf6 {[%clk 0:02:30]}  gxf6 {[%clk 0:02:07]} 12. Qa4 {[%clk 0:02:19]}  Bxd4 {[%clk 0:01:47]} 13. cxd4 {[%clk 0:02:05]}  a6 {[%clk 0:01:39]} 14. Bxd7+ {[%clk 0:02:00]}  Qxd7 {[%clk 0:01:40]} 15. Qxd7+ {[%clk 0:01:54]}  Kxd7 {[%clk 0:01:41]} 16. Rc1 {[%clk 0:01:52]}  Rac8 {[%clk 0:01:39]} 17. Ke2 {[%clk 0:01:50]}  Rhg8 {[%clk 0:01:32]} 18. g3 {[%clk 0:01:39]}  Kd6 {[%clk 0:01:32]} 19. Ke3 {[%clk 0:01:34]}  f5 {[%clk 0:01:17]} 20. b3 {[%clk 0:01:23]}  Kd5 {[%clk 0:01:13]} 21. h4 {[%clk 0:01:15]}  b6 {[%clk 0:01:10]} 22. Kd3 {[%clk 0:01:07]}  a5 {[%clk 0:00:45]} 23. Rc4 {[%clk 0:01:03]}  b5 {[%clk 0:00:43]} 24. Rcc1 {[%clk 0:00:39]}  h6 {[%clk 0:00:34]} 25. Rhe1 {[%clk 0:00:38]}  f6 {[%clk 0:00:33]} 26. a4 {[%clk 0:00:30]}  b4 {[%clk 0:00:25]} 27. Rc4 {[%clk 0:00:29]}  Rxc4 {[%clk 0:00:25]} 28. bxc4+ {[%clk 0:00:30]}  Kd6 {[%clk 0:00:25]} 29. Rg1 {[%clk 0:00:24]}  e5 {[%clk 0:00:25]} 30. f3 {[%clk 0:00:22]}  h5 {[%clk 0:00:21]} 31. Rg2 {[%clk 0:00:20]}  Kc6 {[%clk 0:00:20]} 32. Rg1 {[%clk 0:00:20]}  Kd6 {[%clk 0:00:20]} 33. Rg2 {[%clk 0:00:20]}  f4 {[%clk 0:00:20]} 34. g4 {[%clk 0:00:19]}  hxg4 {[%clk 0:00:19]} 35. fxg4 {[%clk 0:00:18]}  f3 {[%clk 0:00:19]} 36. Rg3 {[%clk 0:00:16]}  f2 {[%clk 0:00:19]} 37. dxe5+ {[%clk 0:00:16]}  Kxe5 {[%clk 0:00:16]} 38. Ke2 {[%clk 0:00:10]}  Kd4 {[%clk 0:00:16]} 39. Kxf2 {[%clk 0:00:10]}  Kxc4 {[%clk 0:00:17]} 40. g5 {[%clk 0:00:09]}  fxg5 {[%clk 0:00:18]} 41. hxg5 {[%clk 0:00:10]}  b3 {[%clk 0:00:18]} 42. Ke2 {[%clk 0:00:11]}  b2 {[%clk 0:00:18]} 43. Rg1 {[%clk 0:00:10]}  Rxg5 {[%clk 0:00:15]} 44. Rb1 {[%clk 0:00:08]}  Kc3 {[%clk 0:00:15]} 45. Ke3 {[%clk 0:00:05]}  Rg4 {[%clk 0:00:13]} 46. Ke2 {[%clk 0:00:05]}  Rxa4 {[%clk 0:00:13]} 47. Ke3 {[%clk 0:00:06]}  Rh4 {[%clk 0:00:13]} 48. Ke2 {[%clk 0:00:04]}  a4 {[%clk 0:00:14]} 0-1


[Site "https://www.chess.com"]